fUST/lending_fUST_20250607
["ID","MTS","AMOUNT","RATE_DAILY","PERIOD"]
[364922350,1749301270537,1731.54,0.00018747,2]
[364922353,1749301462477,10000.0,0.00025479,120]
[364922354,1749301484582,10000.0,0.00025479,120]
[364922355,1749301505032,4999.99,0.00025479,120]
[364922356,1749301577060,4999.8,0.00025479,120]
[364922357,1749301630701,170.942906,0.00013699,2]
[364922359,1749301645144,-300.0,0.00019077,2]
[364922360,1749301645169,-300.0,0.00019077,2]
[364922361,1749301645192,-300.0,0.00019077,2]
[364922362,1749301645217,-300.0,0.00019077,2]
[364922363,1749301645241,-300.0,0.00019077,2]
[364922364,1749301645265,-500.0,0.00019078,2]
[364922365,1749301645287,-500.0,0.00019078,2]
[364922366,1749301645308,-500.0,0.00019078,2]
[364922367,1749301645329,-500.0,0.00019078,2]
[364922368,1749301645350,-500.0,0.00019078,2]
[364922369,1749301645371,-500.0,0.00019078,2]
[364922370,1749301645392,-500.0,0.00019078,2]
[364922371,1749301645414,-500.0,0.00019078,2]
[364922372,1749301645436,-500.0,0.00019078,2]
[364922373,1749301645457,-500.0,0.00019078,2]
[364922374,1749301645478,-500.0,0.00019078,2]
[364922375,1749301645500,-496.97902703,0.00019078,2]
[364922376,1749301645524,-189.06619728,0.00019078,2]
[364922377,1749301645545,-2588.3927255,0.00019166,2]
[364922378,1749301669776,304.192784,0.00018383,2]
[364922409,1749301832469,-2334.44881714,0.00019166,2]
[364922410,1749301832480,-300.0,0.00019176,2]
[364922411,1749301832491,-83.01706819,0.00019177,2]
[364922413,1749301832501,-500.0,0.00019177,2]
[364922415,1749301832512,-500.0,0.00019177,2]
[364922417,1749301832522,-510.26215657,0.00019177,2]
[364922419,1749301832533,-500.0,0.00019177,2]
[364922421,1749301832543,-500.0,0.00019177,2]
[364922423,1749301832553,-500.0,0.00019177,2]
[364922425,1749301832563,-442.68121289,0.00019177,2]
[364922427,1749301832573,-420.26681816,0.00019178,2]
[364922428,1749301832584,-430.0,0.00019178,2]
[364922430,1749301832594,-440.0,0.00019178,2]
[364922432,1749301832604,-440.0,0.00019178,2]
[364922434,1749301832613,-440.0,0.00019178,2]
[364922436,1749301832623,-390.0,0.00019178,2]
[364922437,1749301832632,-440.0,0.00019178,2]
[364922438,1749301832643,-390.0,0.00019178,2]
[364922439,1749301832652,-390.0,0.00019178,2]
[364922440,1749301832662,-440.0,0.00019178,2]
[364922441,1749301832672,-410.0,0.00019178,2]
[364922443,1749301832682,-440.0,0.00019178,2]
[364922445,1749301832692,-440.0,0.00019178,2]
[364922446,1749301832704,-440.0,0.00019178,2]
[364922447,1749301832713,-440.0,0.00019178,2]
[364922449,1749301832723,-440.0,0.00019178,2]
[364922451,1749301832732,-440.59528938,0.00019178,2]
[364922453,1749301832742,-440.0,0.00019178,2]
[364922454,1749301832752,-440.0,0.00019178,2]
[364922455,1749301832761,-324.29511084,0.00019178,2]
[364922456,1749301832771,-440.0,0.00019178,2]
[364922457,1749301832780,-209.35271618,0.00019178,2]
[364922458,1749301832790,-440.0,0.00019178,2]
[364922459,1749301832799,-440.0,0.00019178,2]
[364922460,1749301832809,-440.0,0.00019178,2]
[364922461,1749301832818,-440.0,0.00019178,2]
[364922462,1749301832828,-440.0,0.00019178,2]
[364922463,1749301832837,-499.05685102,0.00019178,2]
[364922464,1749301832848,-440.0,0.00019178,2]
[364922465,1749301832857,-440.0,0.00019178,2]
[364922466,1749301832867,-440.0,0.00019178,2]
[364922467,1749301832876,-489.40458389,0.00019178,2]
[364922468,1749301832885,-430.0,0.00019178,2]
[364922469,1749301832895,-430.0,0.00019178,2]
[364922470,1749301832904,-440.0,0.00019178,2]
[364922471,1749301832913,-390.0,0.00019178,2]
[364922472,1749301832923,-238.62658928,0.00019178,2]
[364922473,1749301832932,-440.0,0.00019178,2]
[364922474,1749301832941,-493.13815954,0.00019178,2]
[364922475,1749301832952,-440.0,0.00019178,2]
[364922476,1749301832962,-440.0,0.00019178,2]
[364922477,1749301832971,-440.0,0.00019178,2]
[364922478,1749301832981,-151.00000001,0.00019178,2]
[364922479,1749301832990,-440.0,0.00019178,2]
[364922480,1749301832999,-440.0,0.00019178,2]
[364922481,1749301833008,-440.0,0.00019178,2]
[364922482,1749301833018,-440.0,0.00019178,2]
[364922483,1749301833028,-440.0,0.00019178,2]
[364922484,1749301833038,-509.61869405,0.00019178,2]
[364922485,1749301833047,-440.0,0.00019178,2]
[364922486,1749301833057,-400.0,0.00019178,2]
[364922488,1749301833072,-440.0,0.00019178,2]
[364922490,1749301833082,-440.0,0.00019178,2]
[364922492,1749301833093,-440.0,0.00019178,2]
[364922494,1749301833103,-380.0,0.00019178,2]
[364922496,1749301833112,-440.0,0.00019178,2]
[364922498,1749301833122,-339.80882097,0.00019178,2]
[364922501,1749301833136,-100.19117903,0.00019178,2]
[364922503,1749301833146,-370.0,0.00019178,2]
[364922504,1749301833156,-440.0,0.00019178,2]
[364922506,1749301833166,-89.70882097,0.00019178,2]
[364922508,1749301833178,-350.29117903,0.00019178,2]
[364922510,1749301833188,-440.0,0.00019178,2]
[364922512,1749301833204,-390.0,0.00019178,2]
[364922514,1749301833214,-390.88982447,0.00019178,2]
[364922517,1749301833231,-39.11017553,0.00019178,2]
[364922519,1749301833240,-401.61429903,0.00019178,2]
[364922521,1749301833250,-254.28056928,0.00019178,2]
[364922523,1749301833263,-185.71943072,0.00019178,2]
[364922525,1749301833274,-440.0,0.00019178,2]
[364922527,1749301833284,-440.0,0.00019178,2]
[364922529,1749301833294,-440.0,0.00019178,2]
[364922531,1749301833304,-440.0,0.00019178,2]
[364922533,1749301833315,-440.0,0.00019178,2]
[364922535,1749301833324,-440.0,0.00019178,2]
[364922537,1749301833334,-440.0,0.00019178,2]
[364922539,1749301833344,-440.0,0.00019178,2]
[364922541,1749301833355,-440.0,0.00019178,2]
[364922543,1749301833365,-440.0,0.00019178,2]
[364922545,1749301833374,-440.0,0.00019178,2]
[364922547,1749301833384,-500.0,0.00019178,2]
[364922549,1749301833394,-440.0,0.00019178,2]
[364922551,1749301833404,-440.0,0.00019178,2]
[364922552,1749301833414,-170.21566736,0.00019178,2]
[364922553,1749301833423,-440.0,0.00019178,2]
[364922555,1749301833434,-440.0,0.00019178,2]
[364922557,1749301833444,-440.0,0.00019178,2]
[364922559,1749301833455,-440.0,0.00019178,2]
[364922561,1749301833465,-440.0,0.00019178,2]
[364922563,1749301833475,-440.0,0.00019178,2]
[364922565,1749301833486,-440.0,0.00019178,2]
[364922567,1749301833496,-440.0,0.00019178,2]
[364922569,1749301833506,-440.0,0.00019178,2]
[364922571,1749301833516,-440.0,0.00019178,2]
[364922572,1749301833526,-369.95827375,0.00019178,2]
[364922573,1749301833537,-440.0,0.00019178,2]
[364922574,1749301833547,-596.71,0.00019178,2]
[364922575,1749301833557,-390.0,0.00019178,2]
[364922576,1749301833567,-440.0,0.00019178,2]
[364922577,1749301833577,-440.0,0.00019178,2]
[364922578,1749301833587,-440.0,0.00019178,2]
[364922579,1749301833598,-440.0,0.00019178,2]
[364922580,1749301833608,-390.0,0.00019178,2]
[364922581,1749301833618,-313.3,0.00019178,2]
[364922582,1749301833628,-440.0,0.00019178,2]
[364922583,1749301833639,-440.0,0.00019178,2]
[364922584,1749301833650,-440.0,0.00019178,2]
[364922585,1749301833660,-330.89490882,0.00019178,2]
[364922586,1749301833671,-440.0,0.00019178,2]
[364922587,1749301833681,-1519.6,0.00019178,2]
[364922588,1749301833694,-440.0,0.00019178,2]
[364922589,1749301833707,-440.0,0.00019178,2]
[364922590,1749301833717,-440.0,0.00019178,2]
[364922591,1749301833728,-564.96,0.00019178,2]
[364922592,1749301833738,-440.0,0.00019178,2]
[364922593,1749301833749,-473.83,0.00019178,2]
[364922594,1749301833762,-440.0,0.00019178,2]
[364922595,1749301833774,-505.44,0.00019178,2]
[364922596,1749301833787,-440.0,0.00019178,2]
[364922597,1749301833798,-396.75770092,0.00019178,2]
[364922598,1749301833810,-440.0,0.00019178,2]
[364922599,1749301833822,-276.19665187,0.00019178,2]
[364922600,1749301833838,-163.80334813,0.00019178,2]
[364922601,1749301833850,-440.0,0.00019178,2]
[364922602,1749301833861,-692.2,0.00019178,2]
[364922603,1749301833872,-440.0,0.00019178,2]
[364922604,1749301833883,-440.0,0.00019178,2]
[364922605,1749301833894,-440.0,0.00019178,2]
[364922606,1749301833906,-440.0,0.00019178,2]
[364922607,1749301833917,-440.0,0.00019178,2]
[364922608,1749301833928,-440.0,0.00019178,2]
[364922609,1749301833939,-440.0,0.00019178,2]
[364922610,1749301833951,-440.0,0.00019178,2]
[364922611,1749301833963,-440.0,0.00019178,2]
[364922612,1749301833974,-440.0,0.00019178,2]
[364922613,1749301834260,-390.0,0.00019178,2]
[364922614,1749301834273,-440.0,0.00019178,2]
[364922615,1749301834284,-440.0,0.00019178,2]
[364922616,1749301834294,-440.0,0.00019178,2]
[364922617,1749301834304,-440.0,0.00019178,2]
[364922618,1749301834314,-440.0,0.00019178,2]
[364922619,1749301834324,-440.0,0.00019178,2]
[364922620,1749301834335,-440.0,0.00019178,2]
[364922621,1749301834345,-440.0,0.00019178,2]
[364922622,1749301834355,-440.0,0.00019178,2]
[364922623,1749301834365,-440.0,0.00019178,2]
[364922624,1749301834376,-1021.87,0.00019178,2]
[364922625,1749301834386,-1096.49,0.00019178,2]
[364922626,1749301834397,-2827.02,0.00019178,2]
[364922627,1749301834407,-440.0,0.00019178,2]
[364922628,1749301834417,-440.0,0.00019178,2]
[364922629,1749301834427,-380.0,0.00019178,2]
[364922630,1749301834437,-440.0,0.00019178,2]
[364922631,1749301834448,-1005.98,0.00019178,2]
[364922632,1749301834457,-440.0,0.00019178,2]
[364922633,1749301834467,-440.0,0.00019178,2]
[364922634,1749301834477,-440.0,0.00019178,2]
[364922635,1749301834488,-400.0,0.00019178,2]
[364922636,1749301834510,-440.0,0.00019178,2]
[364922637,1749301834524,-159.39929833,0.00019178,2]
[364922638,1749301834534,-440.0,0.00019178,2]
[364922639,1749301834545,-440.0,0.00019178,2]
[364922640,1749301834556,-440.0,0.00019178,2]
[364922641,1749301834567,-380.0,0.00019178,2]
[364922642,1749301834578,-440.0,0.00019178,2]
[364922643,1749301834588,-430.0,0.00019178,2]
[364922644,1749301834599,-468.35,0.00019178,2]
[364922645,1749301834609,-440.0,0.00019178,2]
[364922646,1749301834619,-467.62,0.00019178,2]
[364922647,1749301834630,-440.0,0.00019178,2]
[364922648,1749301834640,-418.40528453,0.00019178,2]
[364922649,1749301834650,-935.23,0.00019178,2]
[364922650,1749301834661,-440.0,0.00019178,2]
[364922651,1749301834672,-486.90070196,0.00019178,2]
[364922652,1749301834682,-440.0,0.00019178,2]
[364922653,1749301834692,-500.0,0.00019178,2]
[364922654,1749301834704,-181.523143,0.00019178,2]
[364922655,1749301834715,-160.0,0.00019451,2]
[364922656,1749301834725,-103.41186328,0.00019452,2]
[364922657,1749301834739,-336.58813672,0.00019452,2]
[364922658,1749301834750,-440.0,0.00019452,2]
[364922659,1749301834760,-440.0,0.00019452,2]
[364922660,1749301834770,-417.45632978,0.00019452,2]
[364922661,1749301834782,-22.54367022,0.00019452,2]
[364922662,1749301834792,-440.0,0.00019452,2]
[364922663,1749301834802,-397.40632978,0.00019452,2]
[364922664,1749301834815,-42.59367022,0.00019452,2]
[364922665,1749301834825,-397.40632978,0.00019452,2]
[364922678,1749301838567,-440.0,0.00019178,2]
[364922679,1749301838578,-440.0,0.00019178,2]
[364922681,1749301838588,-42.59367022,0.00019452,2]
[364922683,1749301838598,-440.0,0.00019452,2]
[364922684,1749301838609,-188.30990288,0.00019452,2]
[364922686,1749301838619,-323.67650584,0.00019452,2]
[364922688,1749301838629,-440.0,0.00019452,2]
[364922690,1749301838639,-440.0,0.00019452,2]
[364922692,1749301838649,-440.0,0.00019452,2]
[364922693,1749301838659,-440.0,0.00019452,2]
[364922695,1749301838670,-380.0,0.00019452,2]
[364922696,1749301838680,-354.30248696,0.00019452,2]
[364922697,1749301838690,-440.0,0.00019452,2]
[364922698,1749301838700,-113.95897674,0.00019452,2]
[364922746,1749301840688,-326.04102326,0.00019452,2]
[364922748,1749301840698,-223.23878795,0.00019452,2]
[364922750,1749301840710,-276.76121205,0.00019452,2]
[364922752,1749301840720,-440.0,0.00019452,2]
[364922754,1749301840729,-268.07878795,0.00019452,2]
[364922763,1749301840797,-171.92121205,0.00019452,2]
[364922766,1749301840807,-258.07878795,0.00019452,2]
[364922770,1749301840819,-181.92121205,0.00019452,2]
[364922772,1749301840829,-390.0,0.00019452,2]
[364922773,1749301840839,-351.63,0.00019452,2]
[364922775,1749301840850,-440.0,0.00019452,2]
[364922776,1749301840860,-440.0,0.00019452,2]
[364922777,1749301840871,-596.71,0.00019452,2]
[364922778,1749301840881,-427.03940293,0.00019452,2]
[364922800,1749301843595,-440.0,0.00019178,2]
[364922801,1749301843606,-12.96059707,0.00019452,2]
[364922802,1749301843616,-350.0,0.00019452,2]
[364922803,1749301843626,-440.0,0.00019452,2]
[364922804,1749301843636,-440.0,0.00019452,2]
[364922805,1749301843646,-324.42354492,0.00019452,2]
[364922809,1749301846629,-83.57645508,0.00019452,2]
[364922810,1749301846639,-1519.6,0.00019452,2]
[364922811,1749301846651,-318.57,0.00019452,2]
[364922812,1749301846661,-440.0,0.00019452,2]
[364922813,1749301846671,-440.0,0.00019452,2]
[364922814,1749301846681,-440.0,0.00019452,2]
[364922815,1749301846691,-473.83,0.00019452,2]
[364922816,1749301846702,-440.0,0.00019452,2]
[364922817,1749301846712,-505.44,0.00019452,2]
[364922818,1749301846723,-440.0,0.00019452,2]
[364922819,1749301846732,-440.0,0.00019452,2]
[364922820,1749301846743,-440.0,0.00019452,2]
[364922821,1749301846752,-440.0,0.00019452,2]
[364922822,1749301846762,-692.2,0.00019452,2]
[364922823,1749301846772,-321.00954402,0.00019452,2]
[364922824,1749301846782,-440.0,0.00019452,2]
[364922825,1749301846792,-440.0,0.00019452,2]
[364922826,1749301846801,-440.0,0.00019452,2]
[364922827,1749301846811,-440.0,0.00019452,2]
[364922828,1749301846822,-440.0,0.00019452,2]
[364922829,1749301846831,-440.0,0.00019452,2]
[364922830,1749301846841,-440.0,0.00019452,2]
[364922831,1749301846851,-440.0,0.00019452,2]
[364922832,1749301846860,-440.0,0.00019452,2]
[364922833,1749301846870,-462.23,0.00019452,2]
[364922834,1749301846880,-1021.87,0.00019452,2]
[364922835,1749301846890,-1096.49,0.00019452,2]
[364922836,1749301846899,-2827.02,0.00019452,2]
[364922837,1749301846910,-1005.98,0.00019452,2]
[364922838,1749301846920,-440.0,0.00019452,2]
[364922839,1749301846929,-440.0,0.00019452,2]
[364922840,1749301846939,-440.0,0.00019452,2]
[364922841,1749301846950,-440.0,0.00019452,2]
[364922842,1749301846959,-440.0,0.00019452,2]
[364922843,1749301846969,-440.0,0.00019452,2]
[364922844,1749301846979,-468.35,0.00019452,2]
[364922845,1749301846989,-440.0,0.00019452,2]
[364922846,1749301846999,-467.62,0.00019452,2]
[364922847,1749301847010,-935.23,0.00019452,2]
[364922848,1749301847021,-440.0,0.00019452,2]
[364922849,1749301847031,-440.0,0.00019452,2]
[364922850,1749301847040,-440.0,0.00019452,2]
[364922851,1749301847050,-440.0,0.00019452,2]
[364922852,1749301847059,-440.0,0.00019452,2]
[364922853,1749301847069,-5000.0,0.00019641,2]
[364922854,1749301847079,-501.82835657,0.00019689,2]
[364922855,1749301847089,-500.0,0.00019689,2]
[364922856,1749301847099,-176.27061953,0.00019689,2]
[364922857,1749301847109,-730.64,0.00019716,3]
[364922858,1749301847119,-365.32,0.00019716,3]
[364922859,1749301847129,-182.66,0.00019716,3]
[364922860,1749301847138,-548.0,0.00019716,3]
[364922861,1749301847148,-152.155345,0.00019726,2]
[364922862,1749301847158,-388.29222238,0.00019726,2]
[364922863,1749301847168,-440.0,0.00019726,2]
[364922864,1749301847177,-348.79,0.00019726,2]
[364922865,1749301847186,-440.0,0.00019726,2]
[364922866,1749301847196,-440.0,0.00019726,2]
[364922867,1749301847212,-440.0,0.00019726,2]
[364922868,1749301847221,-440.0,0.00019726,2]
[364922869,1749301847231,-440.0,0.00019726,2]
[364922870,1749301847241,-440.0,0.00019726,2]
[364922871,1749301847251,-474.27,0.00019726,2]
[364922872,1749301847260,-440.0,0.00019726,2]
[364922873,1749301847270,-440.0,0.00019726,2]
[364922874,1749301847280,-500.0,0.00019726,2]
[364922875,1749301847289,-440.0,0.00019726,2]
[364922876,1749301847298,-440.0,0.00019726,2]
[364922877,1749301847308,-440.0,0.00019726,2]
[364922878,1749301847318,-440.0,0.00019726,2]
[364922879,1749301847327,-440.0,0.00019726,2]
[364922880,1749301847337,-596.71,0.00019726,2]
[364922881,1749301847347,-440.0,0.00019726,2]
[364922882,1749301847356,-440.0,0.00019726,2]
[364922883,1749301847366,-370.0,0.00019726,2]
[364922884,1749301847375,-1519.6,0.00019726,2]
[364922885,1749301847385,-440.0,0.00019726,2]
[364922886,1749301847396,-355.21830925,0.00019726,2]
[364922887,1749301847406,-440.0,0.00019726,2]
[364922888,1749301847416,-440.0,0.00019726,2]
[364922889,1749301847426,-473.83,0.00019726,2]
[364922890,1749301847435,-505.44,0.00019726,2]
[364922891,1749301847446,-244.66,0.00019726,2]
[364922892,1749301847455,-440.0,0.00019726,2]
[364922893,1749301847466,-440.0,0.00019726,2]
[364922894,1749301847475,-440.0,0.00019726,2]
[364922895,1749301847485,-692.2,0.00019726,2]
[364922896,1749301847494,-440.0,0.00019726,2]
[364922897,1749301847504,-440.0,0.00019726,2]
[364922898,1749301847514,-440.0,0.00019726,2]
[364922899,1749301847524,-440.0,0.00019726,2]
[364922900,1749301847535,-440.0,0.00019726,2]
[364922901,1749301847545,-440.0,0.00019726,2]
[364922902,1749301847555,-440.0,0.00019726,2]
[364922903,1749301847565,-440.0,0.00019726,2]
[364922904,1749301847575,-333.52,0.00019726,2]
[364922905,1749301847585,-1021.87,0.00019726,2]
[364922906,1749301847595,-1096.49,0.00019726,2]
[364922907,1749301847604,-2827.02,0.00019726,2]
[364922908,1749301847614,-1005.98,0.00019726,2]
[364922909,1749301847623,-440.0,0.00019726,2]
[364922910,1749301847633,-440.0,0.00019726,2]
[364922911,1749301847642,-440.0,0.00019726,2]
[364922912,1749301847652,-440.0,0.00019726,2]
[364922913,1749301847662,-440.0,0.00019726,2]
[364922914,1749301847672,-440.0,0.00019726,2]
[364922915,1749301847681,-468.35,0.00019726,2]
[364922916,1749301847691,-440.0,0.00019726,2]
[364922917,1749301847701,-467.62,0.00019726,2]
[364922918,1749301847711,-935.23,0.00019726,2]
[364922919,1749301847721,-440.0,0.00019726,2]
[364922920,1749301847731,-440.0,0.00019726,2]
[364922921,1749301847740,-440.0,0.00019726,2]
[364922922,1749301847751,-440.0,0.00019726,2]
[364922923,1749301847761,-440.0,0.00019726,2]
[364922924,1749301847771,-500.0,0.00019874,2]
[364922925,1749301847781,-780.35394769,0.000199,2]
[364922926,1749301847791,-151.0,0.0002,2]
[364922927,1749301847801,-267.21668791,0.0002,5]
[364922928,1749301847810,-440.0,0.0002,2]
[364922929,1749301847820,-440.0,0.0002,2]
[364922930,1749301847830,-440.0,0.0002,2]
[364922931,1749301847839,-440.0,0.0002,2]
[364922932,1749301847850,-440.0,0.0002,2]
[364922933,1749301847861,-452.53709734,0.0002,2]
[364922934,1749301847871,-440.0,0.0002,2]
[364922935,1749301847881,-578.04,0.0002,2]
[364922936,1749301847891,-440.0,0.0002,2]
[364922937,1749301847901,-500.0,0.0002,2]
[364922938,1749301847911,-440.0,0.0002,2]
[364922939,1749301847921,-440.0,0.0002,2]
[364922940,1749301847931,-440.0,0.0002,2]
[364922941,1749301847940,-440.0,0.0002,2]
[364922942,1749301847949,-440.0,0.0002,2]
[364922943,1749301847959,-596.71,0.0002,2]
[364922944,1749301847969,-517.14,0.0002,2]
[364922945,1749301847979,-440.0,0.0002,2]
[364922946,1749301847988,-1519.6,0.0002,2]
[364922947,1749301847998,-440.0,0.0002,2]
[364922948,1749301848007,-350.0,0.0002,2]
[364922949,1749301848017,-440.0,0.0002,2]
[364922950,1749301848027,-473.83,0.0002,2]
[364922951,1749301848037,-505.44,0.0002,2]
[364922952,1749301848046,-440.0,0.0002,2]
[364922953,1749301848056,-440.0,0.0002,2]
[364922954,1749301848066,-440.0,0.0002,2]
[364922955,1749301848076,-692.2,0.0002,2]
[364922956,1749301848085,-440.0,0.0002,2]
[364922957,1749301848095,-440.0,0.0002,2]
[364922958,1749301848104,-440.0,0.0002,2]
[364922959,1749301848114,-440.0,0.0002,2]
[364922960,1749301848123,-440.0,0.0002,2]
[364922961,1749301848133,-440.0,0.0002,2]
[364922962,1749301848143,-440.0,0.0002,2]
[364922963,1749301848152,-440.0,0.0002,2]
[364922964,1749301848162,-200.0,0.0002,2]
[364922965,1749301848173,-1021.87,0.0002,2]
[364922966,1749301848183,-1096.49,0.0002,2]
[364922967,1749301848193,-2827.02,0.0002,2]
[364922968,1749301848205,-1005.98,0.0002,2]
[364922969,1749301848218,-440.0,0.0002,2]
[364922970,1749301848227,-440.0,0.0002,2]
[364922971,1749301848237,-440.0,0.0002,2]
[364922972,1749301848247,-440.0,0.0002,2]
[364922973,1749301848258,-440.0,0.0002,2]
[364922974,1749301848268,-440.0,0.0002,2]
[364922975,1749301848278,-468.35,0.0002,2]
[364922976,1749301848289,-440.0,0.0002,2]
[364922977,1749301848299,-467.62,0.0002,2]
[364922978,1749301848308,-935.23,0.0002,2]
[364922979,1749301848319,-440.0,0.0002,2]
[364922980,1749301848330,-440.0,0.0002,2]
[364922981,1749301848339,-440.0,0.0002,2]
[364922982,1749301848350,-440.0,0.0002,2]
[364922983,1749301848360,-440.0,0.0002,2]
[364922984,1749301848370,-780.35394747,0.00020072,2]
[364922985,1749301848380,-504.34099936,0.00020128,2]
[364922986,1749301848389,-1000.0,0.00020237,2]
[364922987,1749301848399,-780.35394747,0.00020245,2]
[364922988,1749301848409,-153.088,0.00020247,2]
[364922989,1749301848419,-153.014895,0.00020273,2]
[364922990,1749301848430,-440.0,0.00020273,2]
[364922991,1749301848440,-440.0,0.00020273,2]
[364922992,1749301848450,-440.0,0.00020273,2]
[364922993,1749301848459,-440.0,0.00020273,2]
[364922994,1749301848469,-440.0,0.00020273,2]
[364922995,1749301848479,-440.0,0.00020273,2]
[364922996,1749301848490,-440.0,0.00020273,2]
[364922997,1749301848500,-217.01784213,0.00020273,2]
[364922998,1749301848859,-288.04215787,0.00020273,2]
[364922999,1749301848869,-440.0,0.00020273,2]
[364923000,1749301848880,-440.0,0.00020273,2]
[364923001,1749301848890,-440.0,0.00020273,2]
[364923002,1749301848900,-440.0,0.00020273,2]
[364923003,1749301849075,-440.0,0.00020273,2]
[364923004,1749301849088,-596.71,0.00020273,2]
[364923005,1749301849098,-440.0,0.00020273,2]
[364923006,1749301849109,-1014.79452675,0.00020273,2]
[364923008,1749301982598,2494.4830047,0.00018999,2]
[364923010,1749302143364,1000.0,0.00025479,120]
[364923011,1749302182004,3644.8,0.00019,2]
[364923012,1749302483324,561.99912777,0.000189,2]
[364923013,1749302713276,5235.10663767,2.3e-05,30]
[364923014,1749302713321,15394.0512,2.3e-05,30]
[364923015,1749302713360,15394.0512,2.3e-05,30]
[364923016,1749302713402,13979.81325443,2.3e-05,30]
[364923027,1749302784604,374.66608518,0.000189,2]
[364923031,1749302854107,-160.86606864,0.00019078,2]
[364923032,1749302854134,-300.0,0.00019165,2]
[364923033,1749302854160,-300.0,0.00019165,2]
[364923034,1749302854184,-160.0,0.00019166,2]
[364923035,1749302854208,-3773.4587798,0.00019166,2]
[364923036,1749302872250,1039.57186039,0.00018,2]
[364923037,1749302872276,2306.76233553,0.00018,2]
[364923039,1749302921875,10072.96872045,0.00018,2]
[364923041,1749302923360,302.0,0.0002,120]
[364923042,1749302923415,452.999999,0.00024671,120]
[364923043,1749302925740,153.81777103,0.000168,2]
[364923051,1749302963741,165.175713,0.00013699,2]
[364923056,1749303003131,2695.32665999,0.000164,2]
[364923057,1749303003159,2723.12437149,0.000164,2]
[364923115,1749303038574,-500.0,0.00019076,2]
[364923118,1749303038584,-500.0,0.00019076,2]
[364923120,1749303038594,-500.0,0.00019076,2]
[364923122,1749303038603,-384.65742038,0.00019076,2]
[364923124,1749303038614,-500.0,0.00019076,2]
[364923126,1749303038623,-500.0,0.00019076,2]
[364923128,1749303038632,-500.0,0.00019076,2]
[364923130,1749303038642,-225.42910642,0.00019076,2]
[364923132,1749303038653,-500.0,0.00019076,2]
[364923134,1749303038666,-500.0,0.00019076,2]
[364923136,1749303038675,-500.0,0.00019076,2]
[364923138,1749303038684,-500.0,0.00019076,2]
[364923140,1749303038694,-500.0,0.00019076,2]
[364923142,1749303038705,-500.0,0.00019076,2]
[364923144,1749303038714,-170.71689639,0.00019076,2]
[364923146,1749303038723,-413.15333481,0.00019076,2]
[364923148,1749303038733,-233.94907006,0.00019076,2]
[364923150,1749303038742,-500.0,0.00019076,2]
[364923152,1749303038752,-166.26816286,0.00019076,2]
[364923153,1749303038761,-500.0,0.00019076,2]
[364923155,1749303038770,-500.0,0.00019076,2]